fUST/lending_fUST_20241130
["ID","MTS","AMOUNT","RATE_DAILY","PERIOD"]
[343725359,1732928798106,-300.0,0.00016152,2]
[343725360,1732928798127,-300.0,0.00016152,2]
[343725361,1732928798148,-500.0,0.00016153,2]
[343725362,1732928798172,-500.0,0.00016153,2]
[343725363,1732928798193,-500.0,0.00016153,2]
[343725364,1732928798214,-500.0,0.00016153,2]
[343725365,1732928798236,-500.0,0.00016153,2]
[343725366,1732928798256,-236.4438507,0.00016153,2]
[343725367,1732928798277,-4282.22367655,0.00016327,2]
[343725368,1732928798298,-498.79757983,0.00016426,2]
[343725369,1732928798317,-1739.97068029,0.00016427,2]
[343725375,1732928988726,646.184673,0.00015441,2]
[343725376,1732929004153,192.6365942,0.00015441,2]
[343725428,1732929034674,-300.0,0.00016426,2]
[343725429,1732929034684,-300.0,0.00016426,2]
[343725430,1732929034695,-913.82261966,0.00016427,2]
[343725490,1732929038669,-793.99569596,0.00016427,2]
[343725491,1732929038682,-163.73361321,0.00016427,2]
[343725492,1732929038691,-1565.17887881,0.00016427,2]
[343725493,1732929038703,-500.0,0.00016427,2]
[343725494,1732929038712,-500.0,0.00016427,2]
[343725495,1732929038722,-284.27459119,0.00016427,2]
[343725496,1732929038731,-500.0,0.00016427,2]
[343725497,1732929038741,-500.0,0.00016427,2]
[343725498,1732929038750,-500.0,0.00016427,2]
[343725499,1732929038760,-500.0,0.00016427,2]
[343725500,1732929038769,-500.0,0.00016427,2]
[343725501,1732929038781,-500.0,0.00016427,2]
[343725502,1732929038791,-500.0,0.00016427,2]
[343725503,1732929038802,-500.0,0.00016427,2]
[343725504,1732929038811,-500.0,0.00016427,2]
[343725505,1732929038821,-500.0,0.00016427,2]
[343725506,1732929038831,-500.0,0.00016427,2]
[343725507,1732929038840,-500.0,0.00016427,2]
[343725508,1732929038851,-500.0,0.00016427,2]
[343725509,1732929038861,-500.0,0.00016427,2]
[343725510,1732929038870,-500.0,0.00016427,2]
[343725511,1732929038879,-500.0,0.00016427,2]
[343725512,1732929038888,-500.0,0.00016427,2]
[343725513,1732929038902,-500.0,0.00016427,2]
[343725514,1732929038910,-500.0,0.00016427,2]
[343725515,1732929038920,-500.0,0.00016427,2]
[343725516,1732929038930,-500.0,0.00016427,2]
[343725517,1732929038940,-500.0,0.00016427,2]
[343725518,1732929038949,-500.0,0.00016427,2]
[343725519,1732929038958,-500.0,0.00016427,2]
[343725520,1732929038968,-500.0,0.00016427,2]
[343725521,1732929038977,-500.0,0.00016427,2]
[343725522,1732929038987,-500.0,0.00016427,2]
[343725523,1732929038999,-228.37901117,0.00016427,2]
[343725524,1732929039010,-500.0,0.00016427,2]
[343725525,1732929039020,-500.0,0.00016427,2]
[343725526,1732929039031,-500.0,0.00016427,2]
[343725527,1732929039041,-500.0,0.00016427,2]
[343725528,1732929039049,-500.0,0.00016427,2]
[343725529,1732929039059,-500.0,0.00016427,2]
[343725530,1732929039070,-500.0,0.00016427,2]
[343725531,1732929039080,-500.0,0.00016427,2]
[343725532,1732929039089,-500.0,0.00016427,2]
[343725533,1732929039101,-500.0,0.00016427,2]
[343725534,1732929039110,-500.0,0.00016427,2]
[343725535,1732929039120,-500.0,0.00016427,2]
[343725536,1732929039130,-500.0,0.00016427,2]
[343725537,1732929039139,-500.0,0.00016427,2]
[343725538,1732929039149,-389.6492434,0.00016427,2]
[343725539,1732929039158,-500.0,0.00016427,2]
[343725540,1732929039168,-500.0,0.00016427,2]
[343725541,1732929039178,-500.0,0.00016427,2]
[343725542,1732929039187,-500.0,0.00016427,2]
[343725543,1732929039198,-500.0,0.00016427,2]
[343725544,1732929039207,-500.0,0.00016427,2]
[343725545,1732929039218,-500.0,0.00016427,2]
[343725546,1732929039228,-500.0,0.00016427,2]
[343725547,1732929039238,-500.0,0.00016427,2]
[343725548,1732929039248,-500.0,0.00016427,2]
[343725549,1732929039258,-500.0,0.00016427,2]
[343725550,1732929039268,-500.0,0.00016427,2]
[343725551,1732929039277,-500.0,0.00016427,2]
[343725552,1732929039287,-500.0,0.00016427,2]
[343725553,1732929039297,-500.0,0.00016427,2]
[343725554,1732929039307,-500.0,0.00016427,2]
[343725555,1732929039317,-500.0,0.00016427,2]
[343725556,1732929039327,-500.0,0.00016427,2]
[343725557,1732929039337,-500.0,0.00016427,2]
[343725558,1732929039346,-500.0,0.00016427,2]
[343725559,1732929039357,-500.0,0.00016427,2]
[343725560,1732929039367,-500.0,0.00016427,2]
[343725561,1732929039377,-561.81414665,0.00016427,2]
[343725562,1732929039386,-500.0,0.00016427,2]
[343725564,1732929039395,-500.0,0.00016427,2]
[343725566,1732929039405,-500.0,0.00016427,2]
[343725567,1732929039414,-500.0,0.00016427,2]
[343725568,1732929039423,-500.0,0.00016427,2]
[343725569,1732929039432,-500.0,0.00016427,2]
[343725570,1732929039441,-500.0,0.00016427,2]
[343725571,1732929039450,-500.0,0.00016427,2]
[343725572,1732929039459,-500.0,0.00016427,2]
[343725573,1732929039469,-500.0,0.00016427,2]
[343725574,1732929039478,-500.0,0.00016427,2]
[343725575,1732929039487,-500.0,0.00016427,2]
[343725576,1732929039495,-500.0,0.00016427,2]
[343725577,1732929039504,-500.0,0.00016427,2]
[343725578,1732929039513,-500.0,0.00016427,2]
[343725579,1732929039522,-500.0,0.00016427,2]
[343725581,1732929039530,-500.0,0.00016427,2]
[343725582,1732929039540,-500.0,0.00016427,2]
[343725583,1732929039549,-500.0,0.00016427,2]
[343725584,1732929039558,-500.0,0.00016427,2]
[343725585,1732929039567,-191.79435231,0.00016427,2]
[343725586,1732929039578,-500.0,0.00016427,2]
[343725587,1732929039588,-500.0,0.00016427,2]
[343725588,1732929039598,-500.0,0.00016427,2]
[343725589,1732929039608,-500.0,0.00016427,2]
[343725590,1732929039618,-500.0,0.00016427,2]
[343725591,1732929039627,-500.0,0.00016427,2]
[343725592,1732929039636,-500.0,0.00016427,2]
[343725593,1732929039645,-500.0,0.00016427,2]
[343725594,1732929039654,-500.0,0.00016427,2]
[343725595,1732929039664,-500.0,0.00016427,2]
[343725596,1732929039673,-500.0,0.00016427,2]
[343725597,1732929039682,-500.0,0.00016427,2]
[343725598,1732929039696,-596.69859959,0.00016427,2]
[343725599,1732929039705,-500.0,0.00016427,2]
[343725600,1732929039715,-500.0,0.00016427,2]
[343725601,1732929039725,-500.0,0.00016427,2]
[343725602,1732929039736,-500.0,0.00016427,2]
[343725603,1732929039746,-500.0,0.00016427,2]
[343725604,1732929039755,-500.0,0.00016427,2]
[343725605,1732929039765,-500.0,0.00016427,2]
[343725606,1732929039775,-500.0,0.00016427,2]
[343725607,1732929039785,-500.0,0.00016427,2]
[343725608,1732929039795,-456.59814875,0.00016438,2]
[343725609,1732929039805,-556.40249935,0.00016473,2]
[343725610,1732929039814,-202.33369131,0.00016473,2]
[343725611,1732929039824,-500.0,0.00016473,2]
[343725612,1732929039834,-158.58214888,0.00016473,2]
[343725613,1732929039843,-501.14740365,0.00016473,2]
[343725614,1732929039853,-500.0,0.00016473,2]
[343725615,1732929039862,-155.53013329,0.00016473,2]
[343725616,1732929039871,-342.85203552,0.0001702,2]
[343725617,1732929039880,-1000.0,0.00017021,2]
[343725618,1732929039890,-500.0,0.0001755,2]
[343725619,1732929039900,-420.0,0.00017952,2]
[343725620,1732929039910,-180.05398093,0.00018022,2]
[343725621,1732929039920,-420.0,0.00018069,2]
[343725624,1732929039930,-167.1325921,0.00019178,2]
[343725625,1732929039940,-169.555327,0.00019178,2]
[343725627,1732929039950,-188.28758461,0.00019616,2]
[343725629,1732929039960,-173.04160677,0.00019616,2]
[343725631,1732929039970,-500.0,0.00019616,2]
[343725633,1732929039981,-77.97128646,0.00019616,2]
[343725751,1732929042535,-255.0209013,0.00019616,2]
[343725753,1732929042544,-600.9791037,0.00019617,2]
[343725755,1732929042556,-39399.02089631,0.00019617,2]
[343725758,1732929042566,-587.0,0.00019619,2]
[343725761,1732929042576,-587.0,0.00019876,2]
[343725764,1732929042585,-213.33205762,0.000199,2]
[343725766,1732929042594,-1890.56935421,0.00019904,2]
[343725770,1732929043226,-1095.27064304,0.00019904,2]
[343725788,1732929045943,-7518.21851181,0.00019904,2]
[343725789,1732929045953,-500.0,0.00019973,2]
[343725790,1732929045963,-500.0,0.00019973,2]
[343725791,1732929045973,-515.88889282,0.00019973,2]
[343725792,1732929045983,-500.0,0.00019973,2]
[343725793,1732929045992,-500.0,0.00019973,2]
[343725794,1732929046001,-500.0,0.00019973,2]
[343725795,1732929046011,-500.0,0.00019973,2]
[343725796,1732929046020,-500.80713521,0.00019973,2]
[343725797,1732929046030,-500.0,0.00019973,2]
[343725798,1732929046039,-151.0,0.00019973,2]
[343725799,1732929046049,-151.0,0.00019973,2]
[343725800,1732929046058,-540.366889,0.00019973,2]
[343725801,1732929046068,-540.366889,0.00019973,2]
[343725802,1732929046078,-151.0,0.00019973,2]
[343725803,1732929046088,-151.635339,0.00019973,2]
[343725804,1732929046098,-151.0,0.0002,2]
[343725805,1732929046107,-151.0,0.0002,2]
[343725806,1732929046117,-540.366889,0.0002,2]
[343725807,1732929046126,-540.366889,0.0002,2]
[343725808,1732929046135,-151.0,0.0002,2]
[343725809,1732929046144,-151.0,0.0002,2]
[343725810,1732929046154,-151.0,0.0002,2]
[343725811,1732929046163,-151.0,0.0002,2]
[343725812,1732929046172,-42379.12683232,0.0002,2]
[343725814,1732929130431,164.96476,0.00013973,2]
[343725817,1732929277121,477.675461,0.00030137,120]
[343725818,1732929791152,164.96476,0.00013973,2]
[343725820,1732929937186,358.256595,0.00030137,120]
[343725823,1732930099427,529.72914395,0.000125,2]
[343725824,1732930118336,835.52467642,0.0002,120]
[343725825,1732930121311,3570.65305643,0.0001,2]
[343725830,1732930125617,1180.40452348,0.000109,2]
[343725874,1732930232466,-1589.92133216,0.000176,2]
[343725875,1732930232476,-1674.29676997,0.000181,2]
[343725876,1732930232487,-454.43318697,0.00018283,2]
[343725877,1732930232497,-300.0,0.00018307,2]
[343725878,1732930232506,-56.32779835,0.00018307,2]
[343726041,1732930243568,-243.67220165,0.00018307,2]
[343726042,1732930243578,-256.32453085,0.00018308,2]
[343726043,1732930243590,-3845.92398847,0.00018308,2]
[343726056,1732930246203,-642.07590957,0.00018308,2]
[343726057,1732930246215,-4813.28833231,0.00018308,2]
[343726058,1732930246225,-1172.53858334,0.00018469,2]
[343726059,1732930246236,-23727.46141666,0.00018469,2]
[343726060,1732930246246,-162.64788367,0.00018686,2]
[343726061,1732930246256,-500.0,0.00018686,2]
[343726062,1732930246265,-500.0,0.00018686,2]
[343726063,1732930246275,-315.8034996,0.00018686,2]
[343726064,1732930246284,-500.0,0.00018686,2]
[343726065,1732930246294,-500.0,0.00018686,2]
[343726066,1732930246304,-500.0,0.00018686,2]
[343726067,1732930246313,-500.0,0.00018686,2]
[343726068,1732930246323,-456.35608959,0.00018686,2]
[343726069,1732930246332,-500.0,0.00018686,2]
[343726070,1732930246342,-500.0,0.00018686,2]
[343726071,1732930246351,-500.0,0.00018686,2]
[343726072,1732930246360,-500.0,0.00018686,2]
[343726074,1732930246369,-500.0,0.00018686,2]
[343726075,1732930246378,-500.0,0.00018686,2]
[343726077,1732930246387,-500.0,0.00018686,2]
[343726078,1732930246396,-577.47471765,0.00018686,2]
[343726079,1732930246408,-500.0,0.00018686,2]
[343726080,1732930246418,-3746.94571692,0.00018687,2]
[343726081,1732930246427,-250.0,0.00018787,2]
[343726082,1732930246436,-257.58826757,0.00018788,2]
[343726083,1732930246446,-323.092337,0.00018889,2]
[343726084,1732930246455,-168.68058,0.00019178,2]
[343726085,1732930246464,-152.0,0.00019927,2]
[343726086,1732930246474,-1406.12151466,0.00019968,2]
[343726087,1732930246483,-420.0,0.00019968,2]
[343726088,1732930246494,-211.72695186,0.00019973,2]
[343726089,1732930246503,-504.76032522,0.00019973,2]
[343726090,1732930246514,-500.0,0.00019973,2]
[343726091,1732930246523,-500.0,0.00019973,2]
[343726092,1732930246532,-366.85966042,0.00019973,2]
[343726093,1732930246541,-500.0,0.00019973,2]
[343726094,1732930246550,-500.0,0.00019973,2]
[343726095,1732930246559,-585.12360612,0.00019989,2]
[343726096,1732930246568,-29927.35743306,0.0001999,2]
[343726105,1732930545338,268.692446,0.00030137,120]
[343726106,1732930546350,165.450309,0.00013973,2]
[343726111,1732931223280,201.519334,0.00030137,120]
[343726112,1732931239467,165.450309,0.00013973,2]
[343726114,1732931320312,1430.97891077,0.00030435,120]
[343726115,1732931368097,-300.0,0.00017117,2]
[343726116,1732931368117,-435.4864226,0.00017118,2]
[343726198,1732931440511,-4332.35120079,0.00017118,2]
[343726199,1732931440525,-644.69443496,0.00017118,2]
[343726235,1732931443823,-12569.98733504,0.00017118,2]
[343726236,1732931443834,-183.5791879,0.00017218,2]
[343726237,1732931443843,-217.37289884,0.00017418,2]
[343726238,1732931443853,-423.97816662,0.00017418,2]
[343726239,1732931443863,-286.38607974,0.00017418,2]
[343726240,1732931443872,-995.40429143,0.00017419,2]
[343726241,1732931443881,-2680.18301119,0.00017419,2]
[343726246,1732931445031,-22219.81698881,0.00017419,2]
[343726247,1732931445041,-433.415324,0.00017705,2]
[343726248,1732931445050,-191.5217241,0.00017752,2]
[343726249,1732931445059,-2844.1727547,0.00018124,2]
[343726250,1732931445068,-250.0,0.00018421,2]
[343726251,1732931445078,-420.0,0.00018828,2]
[343726252,1732931445088,-3283.85155754,0.00018842,2]
[343726253,1732931445097,-968.29449233,0.00018942,2]
[343726254,1732931445106,-297.08371485,0.00019178,2]
[343726255,1732931445116,-171.8881778,0.00019178,2]
[343726256,1732931445125,-169.555327,0.00019178,2]
[343726257,1732931445135,-15068.98297181,0.0001999,2]
[343726258,1732931445144,-180.34942356,0.00019999,2]
[343726259,1732931445157,-3283.90546891,0.00019999,2]
[343726260,1732931445167,-225.79604085,0.00019999,2]
[343726261,1732931445176,-166.3826004,0.00019999,2]
[343726262,1732931445186,-409.58652428,0.00019999,2]
[343726263,1732931445194,-151.0,0.0002,2]
[343726264,1732931445203,-7312.34401832,0.0002,2]
[343726265,1732931445212,-4352.56048877,0.0002,2]
[343726266,1732931445221,-351.82925636,0.0002,2]
[343726267,1732931445231,-654.0,0.0002,2]
[343726268,1732931445240,-651.0,0.0002,2]
[343726269,1732931445250,-651.0,0.0002,2]
[343726270,1732931445259,-651.0,0.0002,2]
[343726271,1732931445268,-401878.0,0.0002,2]
[343726272,1732931445278,-1430.44693146,0.00020125,2]
[343726273,1732931445287,-65566.11741911,0.00020377,2]
[343726274,1732931445296,-151.0,0.00020377,2]
[343726275,1732931445305,-151.0,0.00020377,2]
[343726276,1732931445315,-151.0,0.00020377,2]
[343726277,1732931445324,-151.0,0.00020377,2]
[343726278,1732931445334,-433.060409,0.00020377,2]
[343726279,1732931445344,-433.060409,0.00020377,2]
[343726280,1732931445359,-154.303186,0.00020377,2]
[343726281,1732931445369,-3283.85155751,0.00020498,2]
[343726282,1732931445378,-400.73434,0.00020521,2]
[343726283,1732931445388,-587.0,0.00020711,2]
[343726284,1732931445399,-400.73434,0.00020712,2]
[343726285,1732931445412,-400.73434,0.00020904,2]
[343726286,1732931445422,-400.73434,0.00021096,2]
[343726287,1732931445434,-165.450309,0.00021209,2]
[343726288,1732931445443,-400.73434,0.00021288,2]
[343726289,1732931445453,-400.73434,0.00021479,2]
[343726290,1732931445463,-1430.44693144,0.00021569,2]
[343726291,1732931445472,-400.73434,0.00021671,2]
[343726292,1732931445482,-155.3073661,0.00021753,2]
[343726293,1732931445492,-153.0,0.00021753,2]
[343726294,1732931445501,-153.0,0.00021753,2]
[343726295,1732931445511,-153.0,0.00021753,2]
[343726296,1732931445521,-153.0,0.00021753,2]
[343726297,1732931445530,-400.73434,0.00021863,2]
[343726298,1732931445539,-442.0,0.00022,2]
[343726299,1732931445549,-202.0,0.00022,2]
[343726300,1732931445558,-251.0,0.00022,2]
[343726301,1732931445567,-1583.86145961,0.00022,2]
[343726302,1732931445577,-21264.50498369,0.0002201,16]
[343726303,1732931445588,-212.873314,0.0002201,7]
[343726304,1732931445597,-151.0,0.0002201,7]
[343726305,1732931445606,-151.0,0.0002201,7]
[343726306,1732931445616,-433.060409,0.0002201,7]
[343726307,1732931445625,-433.060409,0.0002201,7]
[343726308,1732931445635,-400.73434,0.00022055,2]
[343726309,1732931445644,-500.0,0.000221,2]
[343726310,1732931445656,-500.0,0.000221,2]
[343726311,1732931445665,-151.0,0.000221,7]
[343726312,1732931445674,-500.64955922,0.000221,2]
[343726313,1732931445684,-500.0,0.000221,2]
[343726314,1732931445693,-500.0,0.000221,2]
[343726315,1732931445703,-500.0,0.000221,2]
[343726316,1732931445712,-3283.85155751,0.00022154,2]
[343726317,1732931445722,-442.0,0.00022192,2]
[343726318,1732931445731,-251.0,0.00022192,2]
[343726319,1732931445740,-442.0,0.00022466,2]
[343726320,1732931445749,-450.98943465,0.00022648,2]
[343726321,1732931445759,-502.01339552,0.00022648,2]
[343726322,1732931445769,-1000.0,0.00022648,2]
[343726323,1732931445778,-1000.0,0.00022648,2]
[343726324,1732931445788,-1000.0,0.00022648,2]
[343726325,1732931445797,-442.0,0.0002274,2]
[343726326,1732931445806,-823.0,0.00022782,2]
[343726327,1732931445815,-154.096467,0.00022875,7]
[343726328,1732931445824,-151.0,0.00022875,7]
[343726329,1732931445833,-1583.86145958,0.00022937,2]
[343726331,1732931445843,-215.6586395,0.00022986,2]
[343726332,1732931445852,-308.2581861,0.00022986,2]
[343726333,1732931445861,-155.1131882,0.00022986,2]
[343726334,1732931445870,-412.3981681,0.00022986,2]
[343726335,1732931445880,-153.0,0.00022986,2]
[343726336,1732931445891,-153.0,0.00022986,2]
[343726337,1732931445901,-242.83141447,0.00023,2]
[343726338,1732931445915,-161.0,0.00023,2]
[343726339,1732931445924,-1430.44693144,0.00023013,2]
[343726340,1732931445934,-442.0,0.00023014,2]
[343726341,1732931445943,-442.0,0.00023014,2]
[343726342,1732931445953,-203.0,0.00023014,2]
[343726343,1732931445962,-251.0,0.00023014,2]
[343726344,1732931445971,-264.96,0.00023075,2]
[343726345,1732931445981,-135959.79326945,0.000231,2]
[343726347,1732931446665,-19301.4,0.000231,2]
[343726359,1732931542486,182.20726,0.00030435,120]
[343726361,1732931634170,450.0,0.00030435,120]
[343726364,1732931835367,201.519334,0.00030137,120]
[343726366,1732931871560,165.450309,0.00013973,2]
[343726378,1732932461239,158.93176226,0.0003,120]
[343726379,1732932461262,91.06823774,0.0003,120]
[343726380,1732932499519,165.368446,0.00013973,2]
[343726385,1732932632970,-189.01566692,0.00020277,2]
[343726386,1732932632980,-154.695133,0.00020377,2]
[343726387,1732932632991,-417.8442342,0.00021547,2]
[343726388,1732932633003,-250.0,0.00021616,2]
[343726389,1732932633013,-194.56180215,0.000218,2]
[343726390,1732932633024,-195.24752935,0.000219,2]
[343726391,1732932633034,-161.0,0.00022,2]
[343726392,1732932633045,-536.12036155,0.00022,2]
[343726525,1732932640788,-15.87963845,0.00022,2]
[343726526,1732932640798,-157.0,0.00022,2]
[343726527,1732932640808,-165.368446,0.00022174,2]
[343726528,1732932640817,-84.30191555,0.00022192,2]
[343726538,1732932644433,-15.00992699,0.00022192,2]
[343726540,1732932644445,-452.68815746,0.00022192,2]
[343726543,1732932644455,-157.0,0.00022192,2]
[343726545,1732932644464,-168.68058,0.00022513,2]
[343726547,1732932644475,-300.0,0.00022598,2]
[343726549,1732932644485,-300.0,0.00022598,2]
[343726551,1732932644494,-23634.18559521,0.00022599,2]
[343726566,1732932646696,-414.0,0.00022,2]
[343726567,1732932646710,-161.0,0.00022,2]
[343726568,1732932646720,-414.0,0.00022192,2]
[343726569,1732932646732,-1265.81440479,0.00022599,2]
[343726571,1732932646742,-216.707662,0.00022634,2]
[343726573,1732932646751,-181.7543399,0.00023084,2]
[343726574,1732932646761,-180.34942356,0.00023099,2]
[343726575,1732932646770,-3291.28130344,0.00023099,2]
[343726576,1732932646781,-17852.80109247,0.000231,2]
[343726580,1732933210999,165.368446,0.00013973,2]
[343726605,1732933832906,-168.68058,0.0002105,2]
[343726606,1732933832916,-300.0,0.00021095,2]
[343726607,1732933832925,-3321.15850473,0.00021096,2]
[343726608,1732933832936,-337.04897569,0.00021096,2]
[343726609,1732933832947,-2661.76865037,0.00021096,2]
[343726700,1732933839046,-18580.02386921,0.00021096,2]
[343726702,1732933839056,-196.8429818,0.00021255,2]
[343726704,1732933839065,-169.555327,0.00021423,2]
[343726705,1732933839078,-2285.09145163,0.000217,2]
[343726706,1732933839087,-307.66894757,0.000218,2]
[343726707,1732933839096,-216.7076624,0.00021868,2]
[343726708,1732933839105,-2031.76869716,0.000219,2]
[343726709,1732933839115,-2052.40722347,0.000219,2]
[343726711,1732933839125,-311.0,0.00022,2]
[343726713,1732933839134,-161.0,0.00022,2]
[343726714,1732933839144,-157.0,0.00022,2]
[343726715,1732933839155,-311.0,0.00022192,2]
[343726716,1732933839166,-157.0,0.00022192,2]
[343726717,1732933839176,-598.53669101,0.00022306,2]
[343726718,1732933839185,-152.0,0.00022642,2]
[343726719,1732933839195,-350.13752948,0.00022952,2]
[343726720,1732933839205,-311.0,0.00023014,2]
[343726721,1732933839215,-161.0,0.00023014,2]
[343726722,1732933839224,-157.0,0.00023014,2]
[343726723,1732933839235,-150.01,0.00023099,2]
[343726724,1732933839253,-2194.18753562,0.00023099,2]
[343726726,1732933839263,-3452.9226389,0.000231,2]
[343726728,1732933839275,-6432.05819931,0.000231,2]
[343726754,1732933844378,-210.68884711,0.00023099,2]
[343726755,1732933844389,-1462.79169042,0.00023099,2]
[343726756,1732933844398,-3253.01614496,0.000231,2]
[343726757,1732933844411,-7393.12404391,0.000231,2]
[343726758,1732933844420,-709.422248,0.000231,2]
[343726759,1732933844430,-327.35,0.00023104,3]
[343726760,1732933844439,-158.0572286,0.00023113,2]
[343726761,1732933844448,-286.710567,0.00023113,2]
[343726762,1732933844457,-500.0,0.00023113,2]
[343726763,1732933844467,-500.0,0.00023113,2]
[343726764,1732933844476,-500.0,0.00023113,2]
[343726765,1732933844486,-500.0,0.00023113,2]
[343726766,1732933844495,-500.0,0.00023113,2]
[343726767,1732933844506,-500.0,0.00023113,2]
[343726768,1732933844515,-500.0,0.00023113,2]
[343726769,1732933844525,-285.75477976,0.00023113,2]
[343726770,1732933844535,-500.0,0.00023113,2]
[343726771,1732933844544,-500.0,0.00023113,2]
[343726772,1732933844554,-500.0,0.00023113,2]
[343726774,1732933844563,-500.0,0.00023113,2]
[343726776,1732933844573,-500.0,0.00023113,2]
[343726778,1732933844583,-500.0,0.00023113,2]
[343726779,1732933844592,-500.0,0.00023113,2]
[343726780,1732933844601,-500.0,0.00023113,2]
[343726781,1732933844610,-500.0,0.00023113,2]
[343726782,1732933844619,-254.23539365,0.00023113,2]
[343726783,1732933844629,-500.0,0.00023113,2]
[343726784,1732933844639,-500.0,0.00023113,2]
[343726785,1732933844648,-500.0,0.00023113,2]
[343726786,1732933844657,-500.0,0.00023113,2]
[343726787,1732933844666,-487.8952846,0.00023113,2]
[343726788,1732933844675,-500.0,0.00023113,2]
[343726789,1732933844685,-500.0,0.00023113,2]
[343726790,1732933844694,-500.0,0.00023113,2]
[343726791,1732933844703,-500.0,0.00023113,2]
[343726792,1732933844712,-500.0,0.00023113,2]
[343726793,1732933844721,-500.0,0.00023113,2]
[343726794,1732933844730,-500.0,0.00023113,2]
[343726795,1732933844740,-1067.24045774,0.00023114,2]
[343726796,1732933844750,-23625.81984476,0.00023114,2]
[343726805,1732933894444,165.368446,0.00013973,2]
[343726808,1732934518422,165.368446,0.00013973,2]
[343726809,1732934619312,-189.01566692,0.00021462,2]
[343726810,1732934619335,-471.97953731,0.00021562,2]
[343726811,1732934619357,-1710.80891136,0.0002178,2]
[343726812,1732934619384,-195.24752935,0.000218,2]
[343726813,1732934619406,-313.06060011,0.000218,2]
[343726814,1732934619427,-194.0,0.00022,2]
[343726815,1732934619448,-157.0,0.00022,2]
[343726816,1732934619469,-194.0,0.00022192,2]
[343726817,1732934619491,-417.8442342,0.00022371,2]
[343726818,1732934619514,-194.0,0.00023014,2]
[343726819,1732934619539,-157.0,0.00023014,2]
[343726820,1732934619565,-300.0,0.00023057,2]
[343726821,1732934619591,-300.0,0.00023057,2]
[343726822,1732934619620,-24900.0,0.00023058,2]
[343726823,1732934619646,-153.0,0.000231,2]
[343726824,1732934619671,-975.19446028,0.00023113,2]
[343726825,1732934619694,-405.92255524,0.000232,2]
[343726826,1732934619730,-324.42683455,0.00023421,2]
[343726827,1732934619754,-384.173765,0.00023562,2]
[343726828,1732934619777,-153.0,0.000236,2]
[343726829,1732934619801,-153.0,0.000236,2]
[343726830,1732934619823,-1795.85632051,0.000239,2]
[343726831,1732934619846,-212.9448838,0.00023918,2]
[343726832,1732934619871,-212.9448838,0.00023918,2]
[343726833,1732934619894,-212.2337042,0.00023918,2]
[343726834,1732934619918,-500.0,0.00023999,2]
[343726835,1732934619942,-472.69282152,0.00023999,2]
[343726836,1732934619966,-554.21058718,0.00023999,2]
[343726837,1732934619989,-13519.90075686,0.00024,2]
[343726838,1732934620012,-711.49363849,0.00024,2]
[343726839,1732934620035,-199.0,0.00024164,2]
[343726840,1732934620058,-384.173765,0.00024433,2]
[343726841,1732934620081,-310.72134173,0.00024592,2]
[343726842,1732934620104,-160.0,0.00024623,3]
[343726843,1732934620129,-198.0918699,0.00024658,2]
[343726844,1732934620153,-1795.85632051,0.0002483,2]
[343726845,1732934620176,-572.1787726,0.00024846,2]
[343726846,1732934620199,-160.0,0.00024869,4]
[343726847,1732934620220,-498.27718008,0.00024873,2]